fUST/lending_fUST_20250810
["ID","MTS","AMOUNT","RATE_DAILY","PERIOD"]
[378183496,1754771449009,-151.0,0.00022776,2]
[378183497,1754771449019,-500.0,0.00022776,2]
[378183498,1754771449028,-300.0,0.00022776,2]
[378183499,1754771449037,-151.0,0.00022776,2]
[378183500,1754771449047,-151.0,0.00022776,2]
[378183501,1754771449056,-151.0,0.00022776,2]
[378183502,1754771449066,-300.0,0.00022776,2]
[378183503,1754771449076,-174.62782613,0.00022776,2]
[378183504,1754771449086,-151.0,0.00022776,2]
[378183505,1754771449096,-300.0,0.00022776,2]
[378183506,1754771449105,-151.0,0.00022776,2]
[378183507,1754771449115,-300.0,0.00022776,2]
[378183508,1754771449125,-151.0,0.00022776,2]
[378183509,1754771449135,-300.0,0.00022776,2]
[378183510,1754771449144,-151.0,0.00022776,2]
[378183511,1754771449154,-300.0,0.00022776,2]
[378183512,1754771449163,-300.0,0.00022776,2]
[378183513,1754771449173,-300.0,0.00022776,2]
[378183514,1754771449182,-300.0,0.00022776,2]
[378183515,1754771449192,-151.0,0.00022776,2]
[378183516,1754771449202,-151.0,0.00022776,2]
[378183517,1754771449212,-151.0,0.00022776,2]
[378183518,1754771449222,-151.0,0.00022776,2]
[378183519,1754771449232,-151.0,0.00022776,2]
[378183520,1754771449243,-151.0,0.00022776,2]
[378183521,1754771449255,-250.0,0.00022776,2]
[378183522,1754771449265,-151.0,0.00022776,2]
[378183523,1754771449275,-151.0,0.00022776,2]
[378183524,1754771449284,-250.0,0.00022776,2]
[378183525,1754771449294,-151.0,0.00022776,2]
[378183526,1754771449303,-151.0,0.00022776,2]
[378183527,1754771449313,-151.0,0.00022776,2]
[378183528,1754771449323,-250.0,0.00022776,2]
[378183529,1754771449335,-151.0,0.00022776,2]
[378183530,1754771449345,-151.0,0.00022776,2]
[378183531,1754771449354,-250.0,0.00022776,2]
[378183532,1754771449363,-151.0,0.00022776,2]
[378183533,1754771449372,-151.0,0.00022776,2]
[378183534,1754771449381,-250.0,0.00022776,2]
[378183535,1754771449391,-283.8854429,0.00022776,2]
[378183536,1754771449399,-151.0,0.00022776,2]
[378183537,1754771449409,-250.0,0.00022776,2]
[378183538,1754771449418,-151.0,0.00022776,2]
[378183539,1754771449427,-250.0,0.00022776,2]
[378183540,1754771449437,-151.0,0.00022776,2]
[378183541,1754771449446,-250.0,0.00022776,2]
[378183542,1754771449456,-250.0,0.00022776,2]
[378183543,1754771449465,-250.0,0.00022776,2]
[378183544,1754771449475,-250.0,0.00022776,2]
[378183545,1754771449484,-250.0,0.00022776,2]
[378183546,1754771449493,-250.0,0.00022776,2]
[378183547,1754771449503,-2264.10087164,0.00022831,2]
[378183548,1754771449512,-160.0,0.00022852,2]
[378183549,1754771449522,-795.08644062,0.00022859,2]
[378183550,1754771449532,-757.31398773,0.00022868,2]
[378183551,1754771449541,-151.0,0.0002288,7]
[378183552,1754771449552,-2347.87260389,0.00022886,2]
[378183553,1754771449562,-498.14,0.00022887,2]
[378183554,1754771449571,-2058.33,0.00022887,2]
[378183555,1754771449580,-460.0,0.00022887,2]
[378183556,1754771449590,-1387.5,0.00022887,2]
[378183557,1754771449599,-1272.77656443,0.00022887,2]
[378183558,1754771449743,-470.36420192,0.00021518,2]
[378183559,1754771449752,-460.0,0.00021518,2]
[378183560,1754771449762,-460.0,0.00021792,2]
[378183561,1754771449907,-315.60343557,0.00022887,2]
[378183562,1754771449917,-460.0,0.00022887,2]
[378183563,1754771449927,-460.0,0.00022887,2]
[378183564,1754771449936,-460.0,0.00022887,2]
[378183565,1754771449946,-695.98,0.00022887,2]
[378183566,1754771449955,-460.0,0.00022887,2]
[378183567,1754771449964,-460.0,0.00022887,2]
[378183568,1754771449973,-460.0,0.00022887,2]
[378183569,1754771449983,-460.0,0.00022887,2]
[378183570,1754771449992,-460.0,0.00022887,2]
[378183571,1754771450001,-460.0,0.00022888,2]
[378183572,1754771450011,-460.0,0.00022888,2]
[378183573,1754771450020,-460.0,0.00022888,2]
[378183574,1754771450029,-460.0,0.00022888,2]
[378183575,1754771450040,-460.0,0.00022888,2]
[378183576,1754771450050,-460.0,0.00022888,2]
[378183577,1754771450060,-460.0,0.00022888,2]
[378183578,1754771450069,-460.0,0.00022888,2]
[378183579,1754771450079,-607.83,0.00022888,2]
[378183580,1754771450088,-460.0,0.00022888,2]
[378183581,1754771450097,-1062.78,0.00022888,2]
[378183582,1754771450107,-3238.86,0.00022888,2]
[378183583,1754771450116,-1220.34,0.00022888,2]
[378183584,1754771450126,-460.0,0.00022888,2]
[378183585,1754771450135,-555.31570571,0.00022888,2]
[378183586,1754771455019,-93.15429429,0.00022888,2]
[378183587,1754771455029,-151.0,0.00022888,7]
[378183588,1754771455039,-829.66,0.00022888,2]
[378183589,1754771455049,-460.0,0.00022888,2]
[378183590,1754771455059,-460.0,0.00022888,2]
[378183591,1754771455069,-460.0,0.00022888,2]
[378183592,1754771455078,-460.0,0.00022888,2]
[378183593,1754771455088,-460.0,0.00022888,2]
[378183594,1754771455097,-1361.96,0.00022888,2]
[378183595,1754771455107,-460.0,0.00022888,2]
[378183596,1754771455117,-518.29,0.00022888,2]
[378183597,1754771455127,-1070.58,0.00022888,2]
[378183598,1754771455137,-460.0,0.00022888,2]
[378183599,1754771455147,-460.0,0.00022888,2]
[378183600,1754771455157,-460.0,0.00022888,2]
[378183601,1754771455166,-460.0,0.00022888,2]
[378183602,1754771455177,-1080.87,0.00022888,2]
[378183603,1754771455187,-460.0,0.00022888,2]
[378183604,1754771455196,-545.53,0.00022888,2]
[378183605,1754771455206,-460.0,0.00022888,2]
[378183606,1754771455216,-642.06,0.00022888,2]
[378183607,1754771455226,-647.65,0.00022888,2]
[378183608,1754771455235,-272.80737386,0.00022889,2]
[378183609,1754771455245,-460.0,0.00022889,2]
[378183610,1754771455259,-151.0,0.00022892,2]
[378183611,1754771455268,-151.0,0.00022892,2]
[378183612,1754771455278,-500.0,0.00022892,2]
[378183613,1754771455408,-503.67033523,0.00022892,2]
[378183614,1754771455418,-500.0,0.00022892,2]
[378183615,1754771455427,-151.0,0.00022892,2]
[378183616,1754771455436,-151.0,0.00022892,2]
[378183617,1754771455445,-151.0,0.00022892,2]
[378183618,1754771455454,-198.44795225,0.00022892,2]
[378183619,1754771455464,-500.0,0.00022892,2]
[378183620,1754771455473,-500.0,0.00022892,2]
[378183621,1754771455482,-151.0,0.00022892,2]
[378183622,1754771455491,-151.0,0.00022892,2]
[378183623,1754771455500,-151.0,0.00022892,2]
[378183624,1754771455510,-201.22167384,0.00022892,2]
[378183625,1754771455519,-500.0,0.00022892,2]
[378183626,1754771455528,-500.0,0.00022892,2]
[378183627,1754771455538,-151.88408324,0.00022892,2]
[378183628,1754771455547,-151.24638763,0.00022892,2]
[378183629,1754771455556,-152.11740545,0.00022892,2]
[378183630,1754771455566,-156.77208899,0.00022892,2]
[378183631,1754771455575,-1239.93659418,0.00022925,2]
[378183632,1754771455584,-2434.74389024,0.00022941,2]
[378183633,1754771455593,-2524.82941417,0.00022996,2]
[378183634,1754771455602,-160.0,0.00023,2]
[378183635,1754771455611,-2618.2481025,0.00023051,2]
[378183636,1754771455620,-647.908932,0.00023064,7]
[378183637,1754771455629,-647.908932,0.00023064,7]
[378183638,1754771455638,-1000.0,0.0002307,2]
[378183639,1754771455647,-1000.0,0.0002307,2]
[378183640,1754771455657,-2715.12328229,0.00023106,2]
[378183641,1754771455666,-498.14,0.00023161,2]
[378183642,1754771455676,-2058.33,0.00023161,2]
[378183643,1754771455686,-460.0,0.00023161,2]
[378183644,1754771455695,-1387.5,0.00023161,2]
[378183645,1754771455705,-1588.38,0.00023161,2]
[378183646,1754771455715,-460.0,0.00023161,2]
[378183647,1754771455724,-460.0,0.00023161,2]
[378183648,1754771455733,-695.98,0.00023161,2]
[378183649,1754771455742,-460.0,0.00023161,2]
[378183650,1754771455751,-460.0,0.00023161,2]
[378183651,1754771455760,-460.0,0.00023161,2]
[378183652,1754771455770,-460.0,0.00023161,2]
[378183653,1754771455779,-460.0,0.00023161,2]
[378183654,1754771455788,-2815.58284374,0.00023161,2]
[378183655,1754771455798,-460.0,0.00023162,2]
[378183656,1754771455807,-460.0,0.00023162,2]
[378183657,1754771455817,-460.0,0.00023162,2]
[378183658,1754771455826,-460.0,0.00023162,2]
[378183659,1754771455835,-460.0,0.00023162,2]
[378183660,1754771455844,-151.0,0.00023162,7]
[378183661,1754771455853,-151.0,0.00023162,7]
[378183662,1754771455863,-460.0,0.00023162,2]
[378183663,1754771455872,-460.0,0.00023162,2]
[378183664,1754771455891,-460.0,0.00023162,2]
[378183665,1754771455903,-413.87914331,0.00023162,2]
[378183666,1754771455914,-1062.78,0.00023162,2]
[378183667,1754771455924,-3238.86,0.00023162,2]
[378183668,1754771455935,-1220.34,0.00023162,2]
[378183669,1754771455944,-648.47,0.00023162,2]
[378183670,1754771455954,-829.66,0.00023162,2]
[378183671,1754771455965,-460.0,0.00023162,2]
[378183672,1754771455975,-460.0,0.00023162,2]
[378183673,1754771455985,-460.0,0.00023162,2]
[378183674,1754771455995,-460.0,0.00023162,2]
[378183675,1754771456004,-460.0,0.00023162,2]
[378183676,1754771456014,-1361.96,0.00023162,2]
[378183677,1754771456023,-460.0,0.00023162,2]
[378183678,1754771456033,-518.29,0.00023162,2]
[378183679,1754771456043,-1070.58,0.00023162,2]
[378183680,1754771456053,-460.0,0.00023162,2]
[378183681,1754771456062,-460.0,0.00023162,2]
[378183682,1754771456072,-460.0,0.00023162,2]
[378183683,1754771456081,-1080.87,0.00023162,2]
[378183684,1754771456091,-460.0,0.00023162,2]
[378183685,1754771456100,-545.53,0.00023162,2]
[378183686,1754771456111,-642.06,0.00023162,2]
[378183687,1754771456121,-647.65,0.00023162,2]
[378183688,1754771456130,-151.0,0.00023163,7]
[378183689,1754771456140,-460.0,0.00023163,2]
[378183690,1754771456150,-593.927987,0.00023164,7]
[378183691,1754771456160,-593.927987,0.00023164,7]
[378183692,1754771456170,-210.159852,0.00023164,7]
[378183693,1754771456181,-210.159852,0.00023164,7]
[378183694,1754771456191,-12666.14847857,0.00023164,7]
[378183695,1754771456200,-461.55179734,0.00023164,7]
[378183696,1754771456209,-151.0,0.00023166,2]
[378183697,1754771456219,-151.0,0.00023166,2]
[378183698,1754771456229,-514.20798353,0.00023166,2]
[378183699,1754771456239,-255.0,0.00023166,2]
[378183700,1754771456251,-151.0,0.00023166,2]
[378183701,1754771456262,-151.0,0.00023166,2]
[378183702,1754771456271,-151.0,0.00023166,2]
[378183703,1754771456281,-500.0,0.00023166,2]
[378183704,1754771456291,-500.0,0.00023166,2]
[378183705,1754771456301,-152.69560173,0.00023166,2]
[378183706,1754771456311,-151.0,0.00023166,2]
[378183707,1754771456320,-151.0,0.00023166,2]
[378183708,1754771456331,-500.0,0.00023166,2]
[378183709,1754771456342,-500.0,0.00023166,2]
[378183710,1754771456353,-290.52,0.000232,2]
[378183711,1754771456364,-1596.7940095,0.00023216,2]
[378183712,1754771456374,-500.0,0.00023236,2]
[378183713,1754771456383,-1000.0,0.00023236,2]
[378183714,1754771456393,-1000.0,0.00023236,2]
[378183715,1754771456403,-527.82257883,0.00023236,2]
[378183716,1754771456413,-905.59629683,0.00023236,2]
[378183717,1754771456422,-497.63546535,0.00023269,2]
[378183718,1754771456432,-1000.0,0.00023269,2]
[378183719,1754771456441,-500.0,0.00023288,2]
[378183720,1754771456451,-24204.50882253,0.00023296,2]
[378183721,1754771456460,-151.0,0.00023324,2]
[378183722,1754771456470,-151.0,0.00023328,7]
[378183723,1754771456481,-420.0,0.00023392,2]
[378183724,1754771456491,-260.0,0.000234,2]
[378183725,1754771456502,-5537.11373773,0.00023409,2]
[378183726,1754771456513,-498.14,0.00023435,2]
[378183727,1754771456522,-2058.33,0.00023435,2]
[378183728,1754771456533,-460.0,0.00023435,2]
[378183729,1754771456543,-1387.5,0.00023435,2]
[378183730,1754771456552,-1588.38,0.00023435,2]
[378183731,1754771456562,-548.44867336,0.00023435,2]
[378183732,1754771456571,-460.0,0.00023435,2]
[378183733,1754771456581,-695.98,0.00023435,2]
[378183734,1754771456590,-460.0,0.00023435,2]
[378183735,1754771456600,-460.0,0.00023435,2]
[378183736,1754771456609,-283.29103711,0.00023435,2]
[378183737,1754771456619,-460.0,0.00023435,2]
[378183738,1754771456629,-460.0,0.00023436,2]
[378183739,1754771456639,-460.0,0.00023436,2]
[378183740,1754771456656,-552.66,0.00023436,2]
[378183741,1754771456671,-460.0,0.00023436,2]
[378183742,1754771456681,-460.0,0.00023436,2]
[378183743,1754771456691,-460.0,0.00023436,2]
[378183744,1754771456702,-460.0,0.00023436,2]
[378183745,1754771456714,-460.0,0.00023436,2]
[378183746,1754771456724,-1062.78,0.00023436,2]
[378183747,1754771456733,-3238.86,0.00023436,2]
[378183748,1754771456743,-1220.34,0.00023436,2]
[378183749,1754771456752,-648.47,0.00023436,2]
[378183750,1754771456761,-151.0,0.00023436,7]
[378183751,1754771456771,-829.66,0.00023436,2]
[378183752,1754771456781,-460.0,0.00023436,2]
[378183753,1754771456790,-460.0,0.00023436,2]
[378183754,1754771456799,-460.0,0.00023436,2]
[378183755,1754771456809,-211.91825168,0.00023436,2]
[378183756,1754771456819,-460.0,0.00023436,2]
[378183757,1754771456828,-1361.96,0.00023436,2]
[378183758,1754771456837,-460.0,0.00023436,2]
[378183759,1754771456847,-518.29,0.00023436,2]
[378183760,1754771456857,-1070.58,0.00023436,2]
[378183761,1754771456867,-460.0,0.00023436,2]
[378183762,1754771456876,-460.0,0.00023436,2]
[378183763,1754771456886,-1080.87,0.00023436,2]
[378183764,1754771456895,-545.53,0.00023436,2]
[378183765,1754771456904,-642.06,0.00023436,2]
[378183766,1754771456913,-647.65,0.00023436,2]
[378183767,1754771456923,-460.0,0.00023437,2]
[378183768,1754771456933,-151.0,0.0002344,2]
[378183769,1754771456942,-151.0,0.0002344,2]
[378183770,1754771456951,-281.31197946,0.0002344,2]
[378183771,1754771456961,-151.0,0.0002344,2]
[378183772,1754771456970,-500.0,0.0002344,2]
[378183773,1754771456980,-460.0,0.0002344,2]
[378183774,1754771456990,-151.0,0.0002344,2]
[378183775,1754771456999,-500.0,0.0002344,2]
[378183776,1754771457009,-500.0,0.0002344,2]
[378183777,1754771457018,-151.0,0.000235,7]
[378183778,1754771457028,-439.0,0.00023502,2]
[378183779,1754771457037,-1680.0,0.00023502,2]
[378183780,1754771457047,-151.0,0.00023504,7]
[378183781,1754771457056,-151.0,0.00023504,7]
[378183782,1754771457065,-593.927987,0.00023505,7]
[378183783,1754771457075,-593.927987,0.00023505,7]
[378183784,1754771457085,-647.908932,0.00023505,7]
[378183785,1754771457095,-647.908932,0.00023505,7]
[378183786,1754771457105,-210.159852,0.00023505,7]
[378183787,1754771457115,-210.159852,0.00023505,7]
[378183788,1754771457124,-439.0,0.00023531,2]
[378183789,1754771457133,-439.0,0.00023534,2]
[378183790,1754771457143,-500.0,0.00023573,2]
[378183791,1754771457153,-500.0,0.00023573,2]
[378183792,1754771457162,-150.23222237,0.000236,2]
[378183793,1754771457171,-1500.0,0.00023618,2]
[378183794,1754771457181,-157.0,0.00023638,2]
[378183795,1754771457190,-1239.93659418,0.00023678,2]
[378183796,1754771457200,-498.14,0.00023709,2]
[378183797,1754771457209,-2058.33,0.00023709,2]
[378183798,1754771457219,-460.0,0.00023709,2]
[378183799,1754771457229,-1387.5,0.00023709,2]
[378183800,1754771457238,-1588.38,0.00023709,2]
[378183801,1754771457248,-460.0,0.00023709,2]
[378183802,1754771457261,-695.98,0.00023709,2]
[378183803,1754771457270,-460.0,0.00023709,2]
[378183804,1754771457280,-460.0,0.00023709,2]
[378183805,1754771457290,-460.0,0.00023709,2]
[378183806,1754771457300,-460.0,0.0002371,2]
[378183807,1754771457310,-500.02,0.0002371,2]
[378183808,1754771457320,-460.0,0.0002371,2]
[378183809,1754771457330,-460.0,0.0002371,2]
[378183810,1754771457340,-460.0,0.0002371,2]
[378183811,1754771457349,-460.0,0.0002371,2]
[378183812,1754771457359,-472.13,0.0002371,2]
[378183813,1754771457368,-1062.78,0.0002371,2]
[378183814,1754771457377,-3238.86,0.0002371,2]
[378183815,1754771457387,-1220.34,0.0002371,2]
[378183816,1754771457396,-648.47,0.0002371,2]
[378183817,1754771457405,-829.66,0.0002371,2]
[378183818,1754771457415,-427.37,0.0002371,2]
[378183819,1754771457425,-460.0,0.0002371,2]
[378183820,1754771457434,-310.98,0.0002371,2]
[378183821,1754771457449,-460.0,0.0002371,2]
[378183822,1754771457458,-1361.96,0.0002371,2]
[378183823,1754771457469,-460.0,0.0002371,2]
[378183824,1754771457478,-518.29,0.0002371,2]
[378183825,1754771457487,-1070.58,0.0002371,2]
[378183826,1754771457497,-460.0,0.0002371,2]
[378183827,1754771457507,-460.0,0.0002371,2]
[378183828,1754771457516,-1080.87,0.0002371,2]
[378183829,1754771457526,-545.53,0.0002371,2]
[378183830,1754771457537,-642.06,0.0002371,2]
[378183831,1754771457549,-647.65,0.0002371,2]
[378183832,1754771457561,-593.927987,0.00023711,7]
[378183833,1754771457571,-593.927987,0.00023711,7]
[378183834,1754771457580,-175.29541,0.00023711,7]
[378183835,1754771457590,-210.159852,0.00023711,7]
[378183836,1754771457599,-210.159852,0.00023711,7]
[378183837,1754771457609,-460.0,0.00023711,2]
[378183838,1754771457618,-151.0,0.00023711,7]
[378183839,1754771457627,-151.0,0.00023711,7]
[378183840,1754771457637,-201.35460193,0.00023714,2]
[378183841,1754771457647,-202.88886188,0.00023714,2]
[378183842,1754771457657,-151.0,0.00023714,2]
[378183843,1754771457669,-418.16369274,0.00023714,2]
[378183844,1754771457679,-151.0,0.00023714,2]
[378183845,1754771457690,-500.0,0.00023714,2]
[378183846,1754771457699,-449.71729665,0.00023714,2]
[378183847,1754771457708,-151.0,0.00023733,7]
[378183848,1754771457718,-500.0,0.00023776,2]
[378183849,1754771457728,-1500.0,0.00023784,2]
[378183850,1754771457737,-500.0,0.00023784,2]
[378183851,1754771457747,-1141.0,0.0002379,2]
[378183852,1754771457757,-1500.0,0.00023817,2]
[378183853,1754771457766,-439.0,0.00023818,2]
[378183854,1754771457779,-199.38,0.00023819,2]
[378183855,1754771457788,-1141.0,0.00023843,2]
[378183856,1754771457798,-1141.0,0.00023881,2]
[378183857,1754771457807,-150.0,0.000239,2]
[378183858,1754771457816,-1141.0,0.00023933,2]
[378183859,1754771457826,-360.0,0.00023948,2]
[378183860,1754771457835,-153.624171,0.00023956,2]
[378183861,1754771457846,-498.14,0.00023983,2]
[378183862,1754771457858,-2058.33,0.00023983,2]
[378183863,1754771457868,-460.0,0.00023983,2]
[378183864,1754771457878,-1387.5,0.00023983,2]
[378183865,1754771457887,-1588.38,0.00023983,2]
[378183866,1754771457897,-460.0,0.00023983,2]
[378183867,1754771457906,-695.98,0.00023983,2]
[378183868,1754771457915,-460.0,0.00023983,2]
[378183869,1754771457925,-460.0,0.00023983,2]
[378183870,1754771457934,-460.0,0.00023983,2]
[378183871,1754771458081,-460.0,0.00023984,2]
[378183872,1754771458091,-460.0,0.00023984,2]
[378183873,1754771458101,-460.0,0.00023984,2]
[378183874,1754771458110,-460.0,0.00023984,2]
[378183875,1754771458119,-460.0,0.00023984,2]
[378183876,1754771458128,-1062.78,0.00023984,2]
[378183877,1754771458138,-3238.86,0.00023984,2]
[378183878,1754771458147,-1220.34,0.00023984,2]
[378183879,1754771458156,-648.47,0.00023984,2]
[378183880,1754771458165,-829.66,0.00023984,2]
[378183881,1754771458174,-509.73286207,0.00023984,2]
[378183882,1754771458183,-460.0,0.00023984,2]
[378183883,1754771458193,-1361.96,0.00023984,2]
[378183884,1754771458204,-460.0,0.00023984,2]
[378183885,1754771458215,-518.29,0.00023984,2]
[378183886,1754771458224,-1070.58,0.00023984,2]
[378183887,1754771458233,-460.0,0.00023984,2]
[378183888,1754771458243,-340.73345677,0.00023984,2]
[378183889,1754771458255,-1080.87,0.00023984,2]
[378183890,1754771458264,-545.53,0.00023984,2]
[378183891,1754771458274,-642.06,0.00023984,2]
[378183892,1754771458283,-647.65,0.00023984,2]
[378183893,1754771458293,-460.0,0.00023985,2]
[378183894,1754771458303,-647.908932,0.00023986,7]
[378183895,1754771458312,-647.908932,0.00023986,7]
[378183896,1754771458322,-662.502,0.00023986,5]
[378183897,1754771458333,-179.13042368,0.00023986,5]
[378183898,1754771458343,-161.26531351,0.00023988,2]
[378183899,1754771458352,-245.0,0.00023988,2]
[378183900,1754771458361,-500.0,0.00023988,2]
[378183901,1754771458370,-593.927987,0.00023988,7]
[378183902,1754771458380,-593.927987,0.00023988,7]
[378183903,1754771458389,-210.159852,0.00023988,7]
[378183904,1754771458398,-210.159852,0.00023988,7]
[378183905,1754771458407,-151.0,0.00024,5]
[378183906,1754771458417,-842.95011917,0.00024,7]
[378183907,1754771458426,-527.77735381,0.00024,7]
[378183908,1754771458436,-160.0,0.00024,7]
[378183909,1754771458445,-231.92402426,0.00024,7]
[378183910,1754771458455,-8328.09296719,0.00024,2]
[378183911,1754771458465,-312.16666667,0.00024,7]
[378183912,1754771458474,-160.0,0.00024,7]
[378183913,1754771458483,-216.61183532,0.00024,7]
[378183914,1754771458493,-160.0,0.00024,7]
[378183915,1754771458502,-439.0,0.00024006,2]
[378183916,1754771458511,-439.0,0.00024014,2]
[378183917,1754771458520,-439.0,0.0002404,2]
[378183918,1754771458529,-600.0,0.00024075,2]
[378183919,1754771458539,-1052.13338448,0.00024111,2]
[378183920,1754771458548,-156.71975641,0.00024121,2]
[378183921,1754771458557,-504.3092506,0.00024121,2]
[378183922,1754771458566,-245.654124,0.00024131,2]
[378183923,1754771458575,-151.0,0.00024145,2]
[378183924,1754771458585,-5000.0,0.00024164,2]
[378183925,1754771458594,-593.927987,0.00024164,7]
[378183926,1754771458604,-593.92799,0.00024164,7]
[378183927,1754771458613,-210.159852,0.00024164,7]
[378183928,1754771458623,-210.159851,0.00024164,7]
[378183929,1754771458632,-2000.0,0.00024166,2]
[378183930,1754771458641,-287.11635226,0.00024184,2]
[378183931,1754771458651,-215.21580661,0.00024186,2]
[378183932,1754771458660,-243.37969701,0.00024249,2]
[378183933,1754771458670,-498.14,0.00024257,2]
[378183934,1754771458679,-2058.33,0.00024257,2]
[378183935,1754771458688,-460.0,0.00024257,2]
[378183936,1754771458698,-1387.5,0.00024257,2]
[378183937,1754771458707,-1588.38,0.00024257,2]
[378183938,1754771458718,-460.0,0.00024257,2]
[378183939,1754771458727,-695.98,0.00024257,2]
[378183940,1754771458736,-460.0,0.00024257,2]
[378183941,1754771458746,-460.0,0.00024257,2]
[378183942,1754771458755,-460.0,0.00024257,2]
[378183943,1754771458764,-460.0,0.00024258,2]
[378183944,1754771458773,-460.0,0.00024258,2]
[378183945,1754771458782,-460.0,0.00024258,2]
[378183946,1754771458792,-460.0,0.00024258,2]
[378183947,1754771458801,-460.0,0.00024258,2]
[378183948,1754771458810,-1062.78,0.00024258,2]
[378183949,1754771458820,-3238.86,0.00024258,2]
[378183950,1754771458829,-1220.34,0.00024258,2]
[378183951,1754771458838,-648.47,0.00024258,2]
[378183952,1754771458847,-829.66,0.00024258,2]
[378183953,1754771458857,-460.0,0.00024258,2]
[378183954,1754771458866,-1361.96,0.00024258,2]
[378183955,1754771458876,-460.0,0.00024258,2]
[378183956,1754771458885,-518.29,0.00024258,2]
[378183957,1754771458894,-1070.58,0.00024258,2]
[378183958,1754771458904,-460.0,0.00024258,2]
[378183959,1754771458913,-1080.87,0.00024258,2]
[378183960,1754771458923,-545.53,0.00024258,2]
[378183961,1754771458932,-642.06,0.00024258,2]
[378183962,1754771458942,-647.65,0.00024258,2]
[378183963,1754771458951,-460.0,0.00024259,2]
[378183964,1754771458960,-151.0,0.00024259,7]
[378183965,1754771458970,-151.0,0.00024259,7]
[378183966,1754771458979,-647.908932,0.0002426,7]
[378183967,1754771458988,-647.908932,0.0002426,7]
[378183968,1754771458997,-500.0,0.00024262,2]
[378183969,1754771459006,-1141.0,0.00024266,2]
[378183970,1754771459016,-1141.0,0.0002429,2]
[378183971,1754771459025,-795.08644062,0.000243,2]
[378183972,1754771459035,-151.0,0.000243,5]
[378183973,1754771459044,-151.0,0.00024324,7]
[378183974,1754771459054,-2000.0,0.00024332,2]
[378183975,1754771459063,-2000.0,0.00024365,2]
[378183976,1754771459073,-341.88,0.00024395,2]
[378183977,1754771459082,-500.0,0.00024398,2]
[378183978,1754771459092,-1642.37811238,0.00024398,2]
[378183979,1754771459101,-371.45411972,0.00024398,2]
[378183980,1754771459111,-860.7498552,0.00024401,2]
[378183981,1754771459121,-290.52,0.00024401,2]
[378183982,1754771459131,-1239.93659418,0.00024431,2]
[378183983,1754771459140,-1141.0,0.00024436,2]
[378183984,1754771459149,-153.624171,0.00024455,15]
[378183985,1754771459159,-1141.0,0.00024477,2]
[378183986,1754771459168,-153.624171,0.00024478,2]
[378183987,1754771459178,-439.0,0.00024487,2]
[378183988,1754771459187,-460.0,0.00024496,2]
[378183989,1754771459197,-26819.72,0.000245,2]
[378183990,1754771459206,-647.908932,0.000245,7]
[378183991,1754771459216,-647.908932,0.000245,7]
[378183992,1754771459225,-90002.54,0.000245,2]
[378183993,1754771459235,-831.880868,0.000245,7]
[378183994,1754771459244,-831.880868,0.000245,7]
[378183995,1754771459256,-151.0,0.000245,7]